bitfinex-derivatives/quotes_SOLF0:USTF0_20250307
["timestamp","ask_amount","ask_price","bid_price","bid_amount"]
[1741368137973,0.05356401,141.87,141.85,0.04748602]
[1741368138879,7.049,141.86,141.85,0.04748602]
[1741368139373,7.15384771,141.86,141.85,0.04748602]
[1741368140069,7.0517,141.81,141.79,34.92]
[1741368140475,34.92,141.88,141.79,34.92]
[1741368140679,28.97675876,141.87,141.75,274.09195876]
[1741368140978,28.90075514,141.87,141.75,274.09195876]
[1741368141281,0.04741438,141.82,141.8,0.04852674]
[1741368141679,7.0515,141.81,141.8,0.04852674]
[1741368142185,7.15634771,141.81,141.8,0.04852674]
[1741368144782,7.054,141.76,141.75,212.06]
[1741368144980,0.10484771,141.81,141.73,34.88]
[1741368145879,0.05400925,141.78,141.69,211.74]
[1741368146086,0.05400925,141.78,141.76,0.05206358]
[1741368146380,0.15387435,141.78,141.7,34.88]
[1741368146576,0.15387435,141.78,141.69,238.85195876]
[1741368146577,0.04902664,141.78,141.67,34.88]
[1741368146779,27.11195876,141.77,141.58,52.97177876]
[1741368146982,27.11195876,141.71,141.58,27.11195876]
[1741368147282,7.061,141.62,141.58,27.11195876]
[1741368147481,36.7299,141.7,141.58,27.11195876]
[1741368147679,36.83474771,141.7,141.58,61.97195876]
[1741368147872,7.0621,141.6,141.59,0.05210904]
[1741368148079,36.83474771,141.7,141.58,61.97195876]
[1741368148279,0.05296937,141.61,141.58,0.04667969]
[1741368148478,0.05296937,141.61,141.55,36.72216647]
[1741368148479,34.86,141.65,141.55,36.72216647]
[1741368148679,0.05039871,141.61,141.58,0.04699514]
[1741368149081,7.0625,141.59,141.58,0.04699514]
[1741368149682,7.16734771,141.59,141.58,9.514e-05]
[1741368150790,7.063,141.58,141.5,34.86]
[1741368150989,0.10475257,141.58,141.5,34.86]
[1741368151184,0.10475257,141.58,141.52,27.11195876]
[1741368151688,0.10475257,141.58,141.5,34.86]
[1741368152089,0.05333718,141.55,141.53,0.04855023]
[1741368153884,7.0649,141.54,141.53,0.04855023]
[1741368154483,7.11783718,141.55,141.53,0.04855023]
[1741368154785,0.05333718,141.55,141.53,0.04855023]
[1741368156393,34.86,141.61,141.53,0.04855023]
[1741368156586,0.10475257,141.61,141.53,0.04855023]
[1741368156887,7.0638,141.57,141.53,0.04855023]
[1741368157285,34.88,141.62,141.53,0.04855023]
[1741368157486,0.05093771,141.56,141.53,27.11195876]
[1741368157686,7.0627,141.59,141.56,0.04541755]
[1741368157886,0.10475257,141.62,141.53,27.11195876]
[1741368158083,0.04874797,141.59,141.56,0.0464596]
[1741368158289,7.0634,141.58,141.56,0.0464596]
[1741368158496,0.15350054,141.59,141.56,0.0464596]
[1741368158788,7.0635,141.57,141.56,0.0464596]
[1741368159389,7.16825257,141.57,141.56,0.0464596]
[1741368160191,7.16825257,141.57,141.56,5.96e-05]
[1741368160495,62.02070673,141.59,141.47,27.11195876]
[1741368160797,0.10475257,141.59,141.5,27.11195876]
[1741368160983,1.8458,141.64,141.53,27.11195876]
[1741368161188,1.95055257,141.64,141.56,27.11195876]
[1741368161384,1.95055257,141.64,141.59,27.15716115]
[1741368161589,0.04895325,141.61,141.59,27.11195876]
[1741368161792,7.0596,141.65,141.6,7.10691364]
[1741368161994,2.12765257,141.68,141.6,0.04491364]
[1741368162409,7.11178783,141.65,141.6,0.04491364]
[1741368162588,0.05198783,141.65,141.6,0.04491364]
[1741368162789,0.05198783,141.65,141.61,34.86]
[1741368163185,0.1567404,141.65,141.6,6.14251138]
[1741368163387,0.1567404,141.65,141.61,34.86]
[1741368163598,0.05198783,141.65,141.62,27.11195876]
[1741368163798,3.837,141.74,141.62,239.03195876]
[1741368164000,3.94175257,141.74,141.65,27.11195876]
[1741368164200,3.94175257,141.74,141.66,34.86]
[1741368165101,0.04731372,141.71,141.69,0.05432663]
[1741368165298,7.057,141.7,141.69,0.05432663]
[1741368165499,7.057,141.7,141.55,61.97195876]
[1741368165500,34.86,141.7,141.55,61.97195876]
[1741368165705,27.11195876,141.68,141.55,61.97195876]
[1741368165996,7.0636,141.57,141.56,116.71090114]
[1741368166200,34.86,141.63,141.56,122.82227539]
[1741368166504,27.21671133,141.68,141.58,7.10839497]
[1741368166505,0.05288839,141.61,141.58,7.10839497]
[1741368166704,34.86,141.66,141.56,157.68227539]
[1741368166903,0.05382658,141.61,141.58,0.05317264]
[1741368167401,0.05382658,141.61,141.58,27.1651314]
[1741368167806,0.05382658,141.61,141.59,6.12146113]
[1741368168003,0.05382658,141.61,141.6,7.062]
[1741368168200,246.74,141.72,141.6,40.98146113]
[1741368168404,2.02935257,141.72,141.63,27.11195876]
[1741368168702,2.02935257,141.72,141.64,34.86]
[1741368168900,2.02935257,141.72,141.64,40.98146113]
[1741368169102,7.0576,141.69,141.64,48.04126113]
[1741368169301,2.02935257,141.72,141.64,40.98146113]
[1741368169509,0.04843821,141.68,141.65,15.97950827]
[1741368169808,0.04843821,141.68,141.65,6.16829382]
[1741368170105,0.04843821,141.68,141.66,6.12146113]
[1741368170307,0.15319078,141.68,141.65,0.04683269]
[1741368170700,7.059,141.66,141.65,0.04683269]
[1741368171007,0.15319078,141.68,141.59,34.84]
[1741368171203,0.10475257,141.68,141.59,34.84]
[1741368171403,34.84,141.67,141.58,38.54465994]
[1741368171906,7.0625,141.59,141.58,38.54465994]
[1741368172107,7.0625,141.59,141.58,18.00555994]
[1741368172301,7.16725257,141.59,141.58,18.00555994]
[1741368172806,0.10475257,141.59,141.56,66.19031991]
[1741368173099,34.84,141.58,141.56,45.78481991]
[1741368173303,34.84,141.58,141.47,447.34416681]
[1741368173604,34.94475257,141.58,141.47,256.34416681]
[1741368173809,7.0655,141.53,141.47,256.34416681]
[1741368174107,0.04534018,141.54,141.52,0.04971785]
[1741368174313,0.04534018,141.54,141.47,256.34416681]
[1741368174608,0.04534018,141.54,141.52,0.04477834]
[1741368176209,0.15009275,141.54,141.52,0.04477834]
[1741368177111,0.04534018,141.54,141.52,0.04477834]
[1741368177605,7.21509275,141.54,141.52,0.04477834]
[1741368177908,0.15009275,141.54,141.52,0.04477834]
[1741368178310,7.0654,141.53,141.52,0.04477834]
[1741368178811,7.17015257,141.53,141.52,0.04477834]
[1741368180209,34.88534018,141.54,141.43,44.15943229]
[1741368180408,78.99943229,141.54,141.42,36.876]
[1741368180608,1.9983,141.53,141.42,36.876]
[1741368181108,1.9983,141.53,141.42,81.07907694]
[1741368181313,0.04454632,141.49,141.46,0.04254825]
[1741368181510,34.84,141.54,141.46,0.04254825]
[1741368181711,34.84,141.57,141.48,44.20307694]
[1741368181911,34.84,141.57,141.47,80.99017694]
[1741368182215,1.9983,141.6,141.51,44.20307694]
[1741368182411,34.84,141.62,141.51,79.04307694]
[1741368182713,34.84,141.62,141.52,1.9761]
[1741368182917,0.04642484,141.58,141.55,0.04789589]
[1741368183212,1.9983,141.65,141.55,0.04789589]
[1741368183412,7.0606,141.63,141.59,7.0624]
[1741368183611,34.84,141.65,141.57,44.20307694]
[1741368183809,229.8676,141.71,141.58,44.1053423]
[1741368184007,256.0853423,141.72,141.58,44.1053423]
[1741368184213,34.84,141.71,141.59,1.9231]
[1741368184417,0.05331478,141.66,141.64,0.04776513]
[1741368184617,34.84,141.71,141.64,0.04776513]
[1741368184809,0.04951857,141.66,141.64,0.04776513]
[1741368185009,34.84,141.72,141.64,0.04776513]
[1741368185210,0.05161649,141.66,141.64,44.15310743]
[1741368185518,34.84,141.75,141.64,47.67310743]
[1741368185707,7.0536,141.77,141.69,7.0573]
[1741368186016,34.84,141.78,141.7,44.1053423]
[1741368186220,7.0535,141.77,141.7,44.1053423]
[1741368186411,3.25911136,141.83,141.7,44.1053423]
[1741368186612,0.04774052,141.75,141.72,0.04465617]
[1741368186812,34.82,141.81,141.7,44.1053423]
[1741368187009,34.82,141.81,141.72,0.04963084]
[1741368187315,7.0536,141.77,141.7,44.1053423]
[1741368187507,0.04818262,141.78,141.75,0.0466597]
[1741368187711,34.82,141.8,141.7,44.1053423]
[1741368187908,0.05429681,141.78,141.75,0.04521444]
[1741368188612,34.82,141.84,141.75,0.04521444]
[1741368188915,7.0496,141.85,141.76,44.1053423]
[1741368189218,34.82,141.87,141.77,36.7233]
[1741368189820,0.05036151,141.83,141.81,0.05295651]
[1741368190013,7.0512,141.82,141.81,0.05295651]
[1741368190415,0.05036151,141.83,141.81,0.05295651]
[1741368190617,7.051,141.82,141.81,0.05295651]
[1741368190919,0.05036151,141.83,141.81,0.05295651]
[1741368191121,7.10096151,141.83,141.81,0.05295651]
[1741368191316,0.05036151,141.83,141.81,0.05295651]
[1741368191712,1.8747,141.91,141.81,0.05295651]
[1741368191913,34.8,141.94,141.82,44.1053423]
[1741368192216,211.86,141.97,141.85,44.1053423]
[1741368192424,34.78,141.96,141.86,1.8579]
[1741368192818,0.04590701,141.92,141.9,0.04518041]
[1741368193223,7.0465,141.91,141.9,0.04518041]
[1741368194112,0.04590701,141.92,141.9,0.04518041]
[1741368194517,3.8989,142.02,141.9,0.04518041]
[1741368194718,7.0424,142.0,141.93,44.1053423]
[1741368194925,34.78,142.06,141.94,36.6379]
[1741368195225,7.0441,141.96,141.94,36.6379]
[1741368195523,34.76,142.02,141.94,1.8579]
[1741368195713,0.04713425,141.96,141.94,0.05363933]
[1741368195912,7.0445,141.95,141.94,0.05363933]
[1741368196115,7.0445,141.95,141.94,3.933e-05]
[1741368197120,7.08955886,141.96,141.94,3.933e-05]
[1741368197328,0.04535886,141.96,141.94,3.933e-05]
[1741368197622,34.76,142.05,141.94,44.10538163]
[1741368197824,1.9034,142.08,141.94,44.1053423]
[1741368198013,36.6634,142.08,141.94,44.1053423]
[1741368198826,0.05038619,142.02,142.0,9.421e-05]
[1741368199124,34.76,142.03,142.0,9.421e-05]
[1741368199330,7.0416,142.01,142.0,9.421e-05]
[1741368201224,0.04713144,142.02,142.0,9.421e-05]
[1741368201728,7.08853144,142.02,142.0,9.421e-05]
[1741368202129,0.04713144,142.02,142.0,7.04209421]
[1741368202520,211.54,142.15,142.0,7.04209421]
[1741368202521,34.74,142.17,142.01,1.8742]
[1741368202827,47.9841423,142.21,142.07,44.1053423]
[1741368203021,34.74,142.2,142.1,44.1053423]
[1741368203222,34.74,142.2,142.11,2.0016]
[1741368203727,0.05082021,142.17,142.14,0.04974806]
[1741368203926,7.0346,142.15,142.14,0.04974806]
[1741368204727,7.0384,142.08,142.06,34.7]
[1741368204927,78.8053423,142.16,142.06,34.7]
[1741368205325,78.8053423,142.16,142.02,1.9294]
[1741368205531,44.1053423,142.13,142.02,1.9294]
[1741368205731,7.0406,142.03,142.02,1.9294]
[1741368205935,0.04594627,142.09,142.01,1.8742]
[1741368206233,0.04575231,142.06,142.01,1.91978898]
[1741368206435,0.04575231,142.06,142.01,1.8742]
[1741368206640,0.04575231,142.06,142.02,0.04958262]
[1741368207135,193.0,142.14,142.04,44.1053423]
[1741368207329,34.7,142.18,142.07,44.1053423]
[1741368207524,2.0339,142.22,142.1,44.1053423]
[1741368207734,238.9524423,142.28,142.13,44.1053423]
[1741368207929,36.7339,142.27,142.13,44.1053423]
[1741368208125,36.7339,142.27,142.14,9.0007]
[1741368208330,0.04640467,142.21,142.19,0.05153064]
[1741368208724,36.7339,142.27,142.19,0.05153064]
[1741368209032,2.0339,142.27,142.19,0.05153064]
[1741368209237,34.7,142.3,142.19,0.05153064]
[1741368209432,0.04613008,142.24,142.19,34.75153064]
[1741368209738,0.04613008,142.24,142.2,0.04487346]
[1741368210733,7.0317,142.21,142.2,0.04487346]
[1741368210937,7.0317,142.21,142.2,7.346e-05]
[1741368212425,12.5128,142.21,142.2,7.346e-05]
[1741368212927,5.4811,142.21,142.07,38.694]
[1741368213134,44.1053423,142.19,142.07,38.694]
[1741368213335,7.038,142.09,142.07,38.694]
[1741368213633,34.66,142.18,142.07,38.694]
[1741368214036,0.04736659,142.14,142.11,0.05384992]
[1741368214233,34.70736659,142.14,142.11,4.992e-05]
[1741368214440,44.1053423,142.13,142.11,4.992e-05]
[1741368214633,7.0361,142.12,142.11,4.992e-05]
[1741368215133,10.5561,142.12,142.11,4.992e-05]
[1741368215639,7.0361,142.12,142.11,4.992e-05]
[1741368216030,54.6614423,142.12,142.11,4.992e-05]
[1741368216430,51.1414423,142.12,142.11,4.992e-05]
[1741368216632,7.0361,142.12,142.11,4.992e-05]
[1741368217328,41.6961,142.12,142.11,4.992e-05]
[1741368217532,85.8014423,142.12,142.11,4.992e-05]
[1741368217837,89.3214423,142.12,142.11,4.992e-05]
[1741368218339,85.8014423,142.12,142.11,4.992e-05]
[1741368218539,89.3214423,142.12,142.11,4.992e-05]
[1741368219139,85.8014423,142.12,142.11,4.992e-05]
[1741368219643,82.2853423,142.12,141.98,1.9152]
[1741368219838,44.1053423,142.07,141.98,1.9152]
[1741368220144,34.66,142.06,141.95,2.0181]
[1741368220443,36.6779,142.06,141.95,2.0181]
[1741368220843,7.09355544,142.02,141.99,0.05206605]
[1741368221041,0.05205544,142.02,141.99,0.05206605]
[1741368221443,7.0421,142.0,141.99,0.05206605]
[1741368221842,7.0421,142.0,141.99,6.605e-05]
[1741368225558,0.05205544,142.02,141.99,6.605e-05]
[1741368225953,7.0416,142.01,141.99,6.605e-05]
[1741368226153,0.05205544,142.02,141.99,6.605e-05]
[1741368226553,7.0421,142.0,141.99,6.605e-05]
[1741368227056,0.05205544,142.02,141.99,6.605e-05]
[1741368228055,7.0421,142.0,141.99,6.605e-05]
[1741368228364,41.6821,142.0,141.99,6.605e-05]
[1741368228556,45.2021,142.0,141.99,6.605e-05]
[1741368228754,41.6821,142.0,141.99,6.605e-05]
[1741368229359,7.0421,142.0,141.99,6.605e-05]
[1741368230761,7.09365544,142.02,141.99,6.605e-05]
[1741368230966,7.09365544,142.02,141.99,7.04236605]
[1741368230967,0.05205544,142.02,141.99,7.04236605]
[1741368231163,1.8991,142.1,141.99,34.64006605]
[1741368231358,34.64,142.09,142.01,44.1053423]
[1741368231962,7.0386,142.07,142.01,44.1053423]
[1741368232164,34.64,142.12,142.01,44.1053423]
[1741368232466,0.05333448,142.05,142.03,0.04822098]
[1741368232668,7.0377,142.09,142.04,7.0397]
[1741368232867,34.64,142.12,142.03,34.68822098]
[1741368233165,34.64,142.12,142.0,3.7592]
[1741368233570,1.9803,142.13,142.01,44.1053423]
[1741368233762,0.04450153,142.07,142.05,0.04435802]
[1741368234068,34.64,142.12,142.05,0.04435802]
[1741368234568,0.04572997,142.1,142.05,0.04435802]
[1741368235669,7.0391,142.06,142.05,5.802e-05]
[1741368235869,41.6791,142.06,142.05,5.802e-05]
[1741368236259,85.7844423,142.06,142.05,5.802e-05]
[1741368236464,7.0421,142.0,141.99,1.594e-05]
[1741368236663,7.0421,142.0,141.97,135.75254219]
[1741368236664,34.64,142.0,141.98,4.729e-05]
[1741368237477,34.64,142.0,141.95,9.70006489]
[1741368237770,34.69197735,142.0,141.98,6.661e-05]
[1741368237968,7.0426,141.99,141.98,6.661e-05]
[1741368239570,7.0426,141.99,141.98,3.821e-05]
[1741368239970,34.69197735,142.0,141.95,9.70006489]
[1741368240171,7.044,141.96,141.95,6.489e-05]
[1741368240364,34.64,141.96,141.93,66.14185138]
[1741368240668,7.045,141.94,141.93,66.18761957]
[1741368241059,7.045,141.94,141.93,0.04576819]
[1741368241272,7.0447,141.95,141.93,0.04576819]
[1741368241569,0.05315543,141.96,141.93,0.04576819]
[1741368241765,7.045,141.94,141.93,0.04576819]
[1741368241975,7.045,141.94,141.93,6.819e-05]
[1741368243073,34.64,141.95,141.93,6.819e-05]
[1741368243567,7.045,141.94,141.93,6.819e-05]
[1741368243766,0.05315543,141.96,141.93,6.819e-05]
[1741368243969,7.09725543,141.96,141.93,6.819e-05]
[1741368244276,0.05315543,141.96,141.93,6.819e-05]
[1741368245071,7.045,141.94,141.93,6.819e-05]
[1741368246174,41.685,141.94,141.93,6.819e-05]
[1741368249169,34.64,141.94,141.93,6.819e-05]
[1741368249575,0.05315543,141.96,141.93,6.819e-05]
[1741368249780,7.045,141.94,141.93,6.819e-05]
[1741368252776,41.685,141.94,141.93,6.819e-05]
[1741368254174,7.045,141.94,141.93,6.819e-05]
[1741368254375,34.69315543,141.96,141.93,6.819e-05]
[1741368255298,0.05315543,141.96,141.95,7.0445]
[1741368255481,7.0419,142.01,141.93,6.819e-05]
[1741368255783,34.64,142.02,141.93,1.9037]
[1741368255983,78.7453423,142.02,141.93,1.9037]
[1741368256285,78.7453423,142.02,141.95,7.0442]
[1741368256489,34.64,142.02,141.93,1.9037]
[1741368256688,0.05269158,142.0,141.97,0.05375304]
[1741368257187,7.043,141.99,141.97,0.05375304]
[1741368257387,0.05269158,142.0,141.97,0.05375304]
[1741368257783,7.0431,141.98,141.97,0.05375304]
[1741368258184,0.05269158,142.0,141.97,0.05375304]
[1741368258486,7.0431,141.98,141.97,0.05375304]
[1741368258987,0.05269158,142.0,141.97,0.05375304]
[1741368260083,7.0402,142.04,141.97,0.05375304]
[1741368260387,34.62,142.05,141.97,0.05375304]
[1741368260598,7.0397,142.05,141.95,44.1053423]
[1741368260893,34.62,142.06,141.95,44.1053423]
[1741368261192,44.1053423,142.05,141.93,36.5237]
[1741368261393,0.04761951,142.02,141.99,0.05230839]
[1741368261583,34.66761951,142.02,141.99,8.39e-06]
[1741368261781,7.0424,142.0,141.99,8.39e-06]
[1741368265093,7.0465,141.91,141.9,3.8008]
[1741368265293,34.62,141.93,141.83,34.62]
[1741368265589,213.3634,141.99,141.84,3.7672]
[1741368265590,34.62,141.92,141.84,3.7672]
[1741368266196,0.05345573,141.89,141.87,0.05114231]
[1741368266691,34.62,141.95,141.87,0.05114231]
[1741368266886,34.62,141.95,141.84,38.3872]
[1741368267091,44.1053423,141.94,141.84,3.7672]
[1741368267692,0.0508244,141.9,141.88,0.04488426]
[1741368268089,44.1053423,142.0,141.88,0.04488426]
[1741368268289,34.62,141.98,141.88,44.1053423]
[1741368269297,0.04767959,141.94,141.92,0.049983]
[1741368271399,0.04767959,141.94,141.92,7.095683]
[1741368271591,0.04767959,141.94,141.92,0.049983]
[1741368271793,0.04767959,141.94,141.92,7.095883]
[1741368272198,0.04767959,141.94,141.92,0.049983]
[1741368272599,0.04767959,141.94,141.93,7.0455]
[1741368273000,0.04767959,141.94,141.92,0.049983]
[1741368273200,7.0455,141.93,141.92,0.049983]
[1741368273502,7.0455,141.93,141.92,8.3e-05]
[1741368274001,0.04767959,141.94,141.92,8.3e-05]
[1741368274598,7.09307959,141.94,141.92,8.3e-05]
[1741368274801,0.04767959,141.94,141.92,8.3e-05]
[1741368274994,7.0455,141.93,141.92,8.3e-05]
[1741368276192,0.04767959,141.94,141.92,8.3e-05]
[1741368276895,7.0455,141.93,141.92,8.3e-05]
[1741368279898,0.04767959,141.94,141.92,8.3e-05]
[1741368280998,7.09297959,141.94,141.92,8.3e-05]
[1741368281206,0.04767959,141.94,141.92,8.3e-05]
[1741368281505,7.0432,141.98,141.92,8.3e-05]
[1741368281807,34.6,142.0,141.91,1.8529]
[1741368282012,7.0436,141.97,141.94,7.0448]
[1741368282309,34.6,142.01,141.92,2.0098]
[1741368282504,27.0301739,142.03,141.92,36.6098]
[1741368282696,0.04942906,141.98,141.95,0.04810979]
[1741368282901,104.82084263,142.06,141.92,36.6098]
[1741368282902,75.89496873,142.06,141.96,61.6301739]
[1741368283097,34.6,142.07,141.96,61.6301739]
[1741368284102,0.05386868,142.03,142.0,0.04712084]
[1741368284596,34.63386868,142.03,142.0,0.04712084]
[1741368284802,34.63386868,142.03,142.0,2.084e-05]
[1741368285406,0.05386868,142.03,142.0,2.084e-05]
[1741368286599,0.05386868,142.03,142.01,7.0411]
[1741368286805,0.05386868,142.03,142.0,2.084e-05]
[1741368287402,1.9582,142.13,142.02,43.88607448]
[1741368287602,43.88607448,142.15,142.03,3.9336]
[1741368287914,34.58,142.13,142.03,3.9336]
[1741368288110,34.58,142.15,142.03,3.9336]
[1741368288411,121.66474321,142.19,142.05,43.88607448]
[1741368288614,121.66474321,142.19,142.03,47.81967448]
[1741368288615,0.04519324,142.1,142.08,43.93457731]
[1741368288915,0.04665037,142.1,142.08,43.88607448]
[1741368289213,34.56,142.19,142.08,43.93143938]
[1741368289411,78.44607448,142.19,142.08,43.88607448]
[1741368289611,78.44607448,142.19,142.06,34.56]
[1741368290113,78.44607448,142.19,142.11,0.04521118]
[1741368290411,0.05015332,142.14,142.11,0.04521118]
[1741368290609,7.0361,142.12,142.11,0.04521118]
[1741368291206,34.61015332,142.14,142.11,0.04521118]
[1741368291808,7.0361,142.12,142.11,0.04521118]
[1741368292713,7.0358,142.13,142.11,0.04521118]
[1741368292912,0.05015332,142.14,142.11,0.04521118]
[1741368293303,7.0361,142.12,142.11,0.04521118]
[1741368294213,7.0361,142.12,142.11,1.118e-05]
[1741368294619,10.5561,142.12,142.11,1.118e-05]
[1741368294916,7.0361,142.12,142.11,1.118e-05]
[1741368295115,10.5561,142.12,142.11,1.118e-05]
[1741368295415,7.0361,142.12,142.11,1.118e-05]
[1741368296219,10.5561,142.12,142.11,1.118e-05]
[1741368296811,7.0361,142.12,142.11,1.118e-05]
[1741368299218,0.05015332,142.14,142.11,1.118e-05]
[1741368299816,7.0361,142.12,142.11,1.118e-05]
[1741368301614,41.5561,142.12,142.11,1.118e-05]
[1741368302616,7.0361,142.12,142.11,1.118e-05]
[1741368303223,0.05015332,142.14,142.11,1.118e-05]
[1741368303615,43.88607448,142.13,142.11,1.118e-05]
[1741368303816,236.448,142.12,142.11,1.118e-05]
[1741368304020,193.0,142.11,141.97,1.9149]
[1741368304219,43.88607448,142.09,141.97,1.9149]
[1741368304419,34.52,142.08,141.97,1.9149]
[1741368304619,43.88607448,142.07,141.97,1.9149]
[1741368304821,7.0431,141.98,141.97,1.9149]
[1741368305020,34.52,142.03,142.01,0.04783263]
[1741368305218,34.5698978,142.03,142.01,3.263e-05]
[1741368305418,34.52,142.03,141.93,1.9149]
[1741368305921,7.0424,142.0,141.95,7.0442]
[1741368306125,34.52,142.03,141.93,45.80097448]
[1741368306324,0.05005435,141.99,141.96,0.04873542]
[1741368307022,236.88607448,142.1,141.98,7.0431]
[1741368307222,34.52,142.09,141.98,43.88607448]
[1741368307423,34.52,142.09,141.95,43.88607448]
[1741368308118,34.52,142.09,141.98,43.88607448]
[1741368308318,3.8426,142.11,142.01,43.9381216]
[1741368308319,0.04682204,142.03,142.01,43.9381216]
[1741368308522,34.52,142.11,142.05,7.0392]
[1741368308826,1.8919,142.12,142.01,78.40607448]
[1741368309723,7.0386,142.07,142.05,0.04981191]
[1741368309920,0.04714538,142.08,142.05,0.04981191]
[1741368310321,7.0386,142.07,142.05,0.04981191]
[1741368310527,0.04714538,142.08,142.05,1.191e-05]
[1741368311226,7.0391,142.06,142.05,1.191e-05]
[1741368311423,41.5591,142.06,142.05,1.191e-05]
[1741368312834,45.0791,142.06,142.05,1.191e-05]
[1741368313735,47.56709029,142.06,142.05,1.191e-05]
[1741368314126,42.78499168,142.06,142.05,1.191e-05]
[1741368314723,8.26499168,142.06,142.05,1.191e-05]
[1741368315026,41.5591,142.06,142.05,1.191e-05]
[1741368316325,7.0391,142.06,142.05,1.191e-05]
[1741368316526,41.5591,142.06,142.05,1.191e-05]
[1741368317334,88.96517448,142.06,142.05,1.191e-05]
[1741368318838,90.19104457,142.06,142.05,1.191e-05]
[1741368320239,86.67104457,142.06,142.05,1.191e-05]
[1741368320540,90.19104457,142.06,142.05,1.191e-05]
[1741368320740,86.67104457,142.06,142.05,1.191e-05]
[1741368321245,42.78497009,142.06,142.05,1.191e-05]
[1741368321442,41.5591,142.06,142.05,1.191e-05]
[1741368323442,7.0391,142.06,142.05,1.191e-05]
[1741368323633,41.5391,142.06,142.05,1.191e-05]
[1741368323829,7.0389,142.07,142.05,1.191e-05]
[1741368324036,34.54714538,142.08,142.05,1.191e-05]
[1741368324235,0.04714538,142.08,142.05,7.03951191]
[1741368324444,0.04714538,142.08,142.05,1.191e-05]
[1741368325546,119.75995309,142.18,142.07,43.88607448]
[1741368325746,110.39496873,142.17,142.1,7.037]
[1741368326036,7.035,142.15,142.1,7.037]
[1741368326245,110.39496873,142.17,142.08,3.8561]
[1741368326440,75.89496873,142.17,142.1,43.88607448]
[1741368326634,0.0449626,142.14,142.11,0.04557736]
[1741368326944,75.89496873,142.21,142.13,43.88607448]
[1741368327144,7.033,142.19,142.13,43.88607448]
[1741368327843,7.0337,142.17,142.13,43.88607448]
[1741368328046,0.0522242,142.17,142.15,0.04991472]
[1741368330644,75.89496873,142.21,142.16,43.88607448]
[1741368330835,75.89496873,142.21,142.17,1.8829]
[1741368331037,60.56096873,142.21,142.19,43.88607448]
[1741368331237,52.44676873,142.21,142.19,43.88607448]
[1741368331447,50.63386873,142.21,142.19,47.40607448]
[1741368331640,50.63386873,142.33,142.19,47.40607448]
[1741368331842,0.04764079,142.21,142.2,4.67935841]
[1741368332049,34.48,142.29,142.17,80.24897448]
[1741368332238,0.0464695,142.22,142.2,43.88607448]
[1741368332444,34.48,142.29,142.2,43.88607448]
[1741368332650,0.04640515,142.22,142.21,41.5117]
[1741368332840,50.63386873,142.33,142.21,34.48]
[1741368333049,50.63386873,142.33,142.26,43.88607448]
[1741368333249,50.63386873,142.33,142.29,43.88607448]
[1741368333847,50.63386873,142.33,142.32,43.88607448]
[1741368334441,50.63386873,142.33,142.32,47.40607448]
[1741368334843,50.63386873,142.33,142.32,54.43227448]
[1741368335049,50.63386873,142.33,142.3,43.93369767]
[1741368335250,50.63386873,142.33,142.3,0.04762319]
[1741368335454,7.0267,142.31,142.3,0.04762319]
[1741368335651,0.04792316,142.34,142.3,0.04762319]
[1741368336047,7.07332316,142.34,142.3,0.04762319]
[1741368336254,0.04792316,142.34,142.3,0.04762319]
[1741368336551,0.04792316,142.34,142.3,34.48762319]
[1741368337348,0.04792316,142.34,142.3,41.51482319]
[1741368337548,0.04792316,142.34,142.3,34.48762319]
[1741368338252,0.04792316,142.34,142.3,0.04762319]
[1741368338552,0.04792316,142.34,142.3,43.93369767]
[1741368339650,0.04792316,142.34,142.3,0.04762319]
[1741368340048,7.0267,142.31,142.3,0.04762319]
[1741368340549,0.04792316,142.34,142.3,43.93369767]
[1741368340745,0.04792316,142.34,142.3,78.35369767]
[1741368341154,0.04792316,142.34,142.31,7.0266]
[1741368341547,0.04792316,142.34,142.3,78.35369767]
[1741368342046,0.04792316,142.34,142.3,34.46762319]
[1741368342452,7.0261,142.33,142.3,34.46762319]
[1741368342655,0.04792316,142.34,142.3,34.46762319]
[1741368343355,7.0264,142.32,142.3,34.46762319]
[1741368343952,0.04792316,142.34,142.3,34.46762319]
[1741368344455,0.04792316,142.34,142.3,0.04762319]
[1741368344657,7.0262,142.33,142.3,0.04762319]
[1741368344860,0.04792316,142.34,142.3,0.04762319]
[1741368345661,0.04792316,142.34,142.3,43.93369767]
[1741368346048,0.04792316,142.34,142.33,7.0257]
[1741368346752,0.04792316,142.34,142.31,34.4]
[1741368347054,0.04792316,142.34,142.3,0.04762319]
[1741368347258,7.0267,142.31,142.3,0.04762319]
[1741368347660,7.0293,142.26,142.23,245.52]